fUSD/lending_fUSD_20260517
["ID","MTS","AMOUNT","RATE_DAILY","PERIOD"]
[422472015,1778971858000,-1540.0,0.000419,30]
[422472017,1778971858000,-1540.0,0.000419,30]
[422472016,1778971858000,-151.0,0.000419,30]
[422472012,1778971858000,-151.0,0.000419,30]
[422472021,1778971858000,-1540.0,0.000419,30]
[422472028,1778971858000,-1678.50576064,0.000419,30]
[422472022,1778971858000,-1540.0,0.000419,30]
[422472013,1778971858000,-1540.0,0.000419,30]
[422472029,1778971858000,-245.7,0.000419,48]
[422472041,1778971858000,-167.32677,0.000419,120]
[422472024,1778971858000,-1540.0,0.000419,30]
[422472040,1778971858000,-195.276238,0.000419,120]
[422472043,1778971858000,-167.32677,0.000419,120]
[422472036,1778971858000,-200.0,0.000419,7]
[422472044,1778971858000,-167.32677,0.000419,120]
[422472033,1778971858000,-154.0,0.000419,30]
[422472032,1778971858000,-151.0,0.000419,30]
[422472027,1778971858000,-1540.0,0.000419,30]
[422472030,1778971858000,-160.0,0.000419,58]
[422472026,1778971858000,-1540.0,0.000419,30]
[422472023,1778971858000,-1540.0,0.000419,30]
[422472025,1778971858000,-1540.0,0.000419,30]
[422472031,1778971858000,-447.55042311,0.000419,30]
[422472088,1778971859000,-1371.42346935,0.00042,37]
[422472089,1778971859000,-10804.05,0.00027397,10]
[422472091,1778971859000,-151.0,0.00033184,30]
[422472093,1778971859000,-300.0,0.00036349,2]
[422472095,1778971859000,-200.552298,0.0004,30]
[422472094,1778971859000,-151.0,0.0004,30]
[422472096,1778971859000,-151.0,0.0004,30]
[422472085,1778971859000,-200.0,0.00041999,120]
[422472098,1778971859000,-240.725161,0.00041867,120]
[422472092,1778971859000,-309.92123961,0.00036349,2]
[422472086,1778971859000,-40000.0,0.00042,68]
[422472076,1778971859000,-334.30909131,0.00041969,2]
[422472084,1778971859000,-500.61920959,0.00041999,60]
[422472082,1778971859000,-151.0,0.00041997,14]
[422472075,1778971859000,-269.21132854,0.00041924,60]
[422472079,1778971859000,-174.75,0.00041992,120]
[422472074,1778971859000,-261.51838624,0.00041924,60]
[422472080,1778971859000,-151.0,0.00041997,14]
[422472083,1778971859000,-151.0,0.00041997,14]
[422472077,1778971859000,-400.0,0.0004197,3]
[422472078,1778971859000,-157.78723388,0.00041986,2]
[422472081,1778971859000,-151.0,0.00041997,14]
[422472073,1778971859000,-299.98309775,0.00041924,60]
[422472097,1778971859000,-151.0,0.00041867,120]
[422472087,1778971859000,-99799.25395611,0.00042,37]
[422472099,1778971859000,-151.0,0.00041867,120]
[422472090,1778971859000,-151.0,0.00032184,30]
[422472102,1778971859000,-2991.49051684,0.00041899,30]
[422472101,1778971859000,-2884.75459676,0.00041899,30]
[422472127,1778971859000,-88601.02078512,0.00042,120]
[422472126,1778971859000,-480957.8378365,0.00042,120]
[422472125,1778971859000,-6054.0,0.00037659,2]
[422472124,1778971859000,-300.0,0.00036349,2]
[422472123,1778971859000,-1127.79186826,0.00036349,2]
[422472120,1778971859000,-151.0,0.00036184,30]
[422472121,1778971859000,-300.0,0.00036349,2]
[422472115,1778971859000,-3509.45260501,0.00031659,2]
[422472118,1778971859000,-6054.0,0.00034659,2]
[422472116,1778971859000,-2544.54739499,0.00031659,2]
[422472113,1778971859000,-372.44,0.0002863,2]
[422472114,1778971859000,-6054.0,0.00028659,2]
[422472122,1778971859000,-300.0,0.00036349,2]
[422472110,1778971859000,-151.0,0.00021,2]
[422472112,1778971859000,-5000.0,0.0002816,2]
[422472111,1778971859000,-190.5461377,0.00024458,2]
[422472119,1778971859000,-151.0,0.00035184,30]
[422472109,1778971859000,-151.0,0.0002,2]
[422472108,1778971859000,-1709.02135729,0.00019588,2]
[422472107,1778971859000,-1944.51206963,0.00019588,2]
[422472104,1778971859000,-269696.00548205,0.00042,120]
[422472106,1778971859000,-542.86878999,0.00019588,2]
[422472105,1778971859000,-4196.40221691,0.00018371,2]
[422472103,1778971859000,-74134.46047566,0.00042,37]
[422472100,1778971859000,-151.0,0.00041867,120]
[422472117,1778971859000,-151.0,0.00034184,30]
[422472128,1778971876000,-666.29,0.000124,2]
[422472129,1778971951000,150.67,0.00011806,2]
[422472130,1778971980000,594.31,0.00025323,120]
[422472131,1778971980000,594.31,0.00028137,120]
[422472133,1778972245000,2000.0,0.00029034,120]
[422472181,1778972732000,2708.17308099,0.000107,2]
[422472184,1778972802000,-195.83548665,0.00010699,2]
[422472183,1778972802000,-229.0,0.00010699,2]
[422472186,1778972991000,150.67,6.899e-05,2]
[422472185,1778972991000,150.67,6.066e-05,2]
[422472189,1778972992000,150.67,9.396e-05,2]
[422472188,1778972992000,150.67,8.564e-05,2]
[422472187,1778972992000,150.67,7.731e-05,2]
[422472194,1778973031000,-190.54613769,0.00010606,2]
[422472192,1778973031000,-173.87,0.00010345,2]
[422472193,1778973031000,-163.39,0.00010345,2]
[422472191,1778973031000,-150.67,0.00010229,2]
[422472196,1778973031000,-55.21730309,0.00010606,2]
[422472201,1778973031000,-300.0,0.00010698,2]
[422472197,1778973031000,-2830.9918103,0.00010606,2]
[422472198,1778973031000,-2305.11767542,0.00010606,2]
[422472199,1778973031000,-250.0,0.00010652,2]
[422472200,1778973031000,-250.0,0.00010682,2]
[422472202,1778973031000,-1200.0,0.00010698,2]
[422472195,1778973031000,-306.72761017,0.00010606,2]
[422472246,1778973032000,-2905.9379517,0.00010699,2]
[422472242,1778973032000,-2905.9379517,0.00010699,2]
[422472243,1778973032000,-2905.9379517,0.00010699,2]
[422472240,1778973032000,-2905.9379517,0.00010699,2]
[422472241,1778973032000,-2905.9379517,0.00010699,2]
[422472238,1778973032000,-2905.9379517,0.00010699,2]
[422472244,1778973032000,-2905.9379517,0.00010699,2]
[422472239,1778973032000,-2905.9379517,0.00010699,2]
[422472236,1778973032000,-2905.9379517,0.00010699,2]
[422472234,1778973032000,-578.01761982,0.00010699,2]
[422472235,1778973032000,-500.0,0.00010699,2]
[422472237,1778973032000,-2905.9379517,0.00010699,2]
[422472245,1778973032000,-2905.9379517,0.00010699,2]
[422472249,1778973032000,-2905.9379517,0.00010699,2]
[422472247,1778973032000,-2905.9379517,0.00010699,2]
[422472251,1778973032000,-2905.9379517,0.00010699,2]
[422472254,1778973032000,-2905.9379517,0.00010699,2]
[422472250,1778973032000,-2905.9379517,0.00010699,2]
[422472252,1778973032000,-2905.9379517,0.00010699,2]
[422472253,1778973032000,-2905.9379517,0.00010699,2]
[422472255,1778973032000,-2905.9379517,0.00010699,2]
[422472256,1778973032000,-2905.9379517,0.00010699,2]
[422472233,1778973032000,-2905.9379517,0.00010699,2]
[422472258,1778973032000,-2905.9379517,0.00010699,2]
[422472257,1778973032000,-2905.9379517,0.00010699,2]
[422472260,1778973032000,-2905.9379517,0.00010699,2]
[422472248,1778973032000,-2905.9379517,0.00010699,2]
[422472232,1778973032000,-2905.9379517,0.00010699,2]
[422472204,1778973032000,-535.06553332,0.00010699,2]
[422472231,1778973032000,-2905.9379517,0.00010699,2]
[422472259,1778973032000,-2905.9379517,0.00010699,2]
[422472206,1778973032000,-500.0,0.00010699,2]
[422472203,1778973032000,-304.16451335,0.00010699,2]
[422472205,1778973032000,-500.0,0.00010699,2]
[422472208,1778973032000,-524.69578406,0.00010699,2]
[422472207,1778973032000,-500.0,0.00010699,2]
[422472209,1778973032000,-500.0,0.00010699,2]
[422472210,1778973032000,-500.0,0.00010699,2]
[422472214,1778973032000,-500.0,0.00010699,2]
[422472211,1778973032000,-500.0,0.00010699,2]
[422472213,1778973032000,-500.0,0.00010699,2]
[422472215,1778973032000,-165.93694316,0.00010699,2]
[422472212,1778973032000,-500.0,0.00010699,2]
[422472216,1778973032000,-500.0,0.00010699,2]
[422472217,1778973032000,-500.0,0.00010699,2]
[422472220,1778973032000,-500.0,0.00010699,2]
[422472218,1778973032000,-500.0,0.00010699,2]
[422472219,1778973032000,-2905.9379517,0.00010699,2]
[422472221,1778973032000,-500.0,0.00010699,2]
[422472224,1778973032000,-470.11117896,0.00010699,2]
[422472226,1778973032000,-2905.9379517,0.00010699,2]
[422472227,1778973032000,-500.0,0.00010699,2]
[422472228,1778973032000,-2905.9379517,0.00010699,2]
[422472225,1778973032000,-500.0,0.00010699,2]
[422472223,1778973032000,-2905.9379517,0.00010699,2]
[422472222,1778973032000,-500.0,0.00010699,2]
[422472230,1778973032000,-500.0,0.00010699,2]
[422472229,1778973032000,-162.3982742,0.00010699,2]
[422472270,1778973032000,-2905.9379517,0.00010699,2]
[422472328,1778973032000,-4494.81890222,0.00010699,2]
[422472266,1778973032000,-2905.9379517,0.00010699,2]
[422472317,1778973032000,-4494.81890222,0.00010699,2]
[422472321,1778973032000,-4494.81890222,0.00010699,2]
[422472320,1778973032000,-4494.81890222,0.00010699,2]
[422472319,1778973032000,-4494.81890222,0.00010699,2]
[422472316,1778973032000,-4494.81890222,0.00010699,2]
[422472323,1778973032000,-4494.81890222,0.00010699,2]
[422472322,1778973032000,-4494.81890222,0.00010699,2]
[422472318,1778973032000,-4494.81890222,0.00010699,2]
[422472325,1778973032000,-4494.81890222,0.00010699,2]
[422472326,1778973032000,-4494.81890222,0.00010699,2]
[422472324,1778973032000,-4494.81890222,0.00010699,2]
[422472340,1778973032000,-194459.47703652,0.000107,2]
[422472313,1778973032000,-4494.81890222,0.00010699,2]
[422472327,1778973032000,-4494.81890222,0.00010699,2]
[422472331,1778973032000,-4550.37445777,0.00010699,2]
[422472330,1778973032000,-4550.37445777,0.00010699,2]
[422472333,1778973032000,-4550.37445777,0.00010699,2]
[422472335,1778973032000,-4550.37445777,0.00010699,2]
[422472332,1778973032000,-4550.37445777,0.00010699,2]
[422472334,1778973032000,-4550.37445777,0.00010699,2]
[422472337,1778973032000,-4550.37445777,0.00010699,2]
[422472339,1778973032000,-214.40717226,0.00010699,2]
[422472336,1778973032000,-4550.37445777,0.00010699,2]
[422472338,1778973032000,-4550.37445777,0.00010699,2]
[422472341,1778973032000,-106111.49118401,0.000107,2]
[422472261,1778973032000,-2905.9379517,0.00010699,2]
[422472329,1778973032000,-185.59282774,0.00010699,2]
[422472314,1778973032000,-4494.81890222,0.00010699,2]
[422472315,1778973032000,-4494.81890222,0.00010699,2]
[422472311,1778973032000,-4494.81890222,0.00010699,2]
[422472264,1778973032000,-2905.9379517,0.00010699,2]
[422472262,1778973032000,-2905.9379517,0.00010699,2]
[422472268,1778973032000,-2905.9379517,0.00010699,2]
[422472273,1778973032000,-2905.9379517,0.00010699,2]
[422472279,1778973032000,-2905.9379517,0.00010699,2]
[422472274,1778973032000,-2905.9379517,0.00010699,2]
[422472276,1778973032000,-2905.9379517,0.00010699,2]
[422472280,1778973032000,-2905.9379517,0.00010699,2]
[422472291,1778973032000,-2905.9379517,0.00010699,2]
[422472295,1778973032000,-2905.9379517,0.00010699,2]
[422472293,1778973032000,-2905.9379517,0.00010699,2]
[422472312,1778973032000,-4494.81890222,0.00010699,2]
[422472287,1778973032000,-2905.9379517,0.00010699,2]
[422472289,1778973032000,-2905.9379517,0.00010699,2]
[422472283,1778973032000,-2905.9379517,0.00010699,2]
[422472297,1778973032000,-2905.9379517,0.00010699,2]
[422472309,1778973032000,-4494.81890222,0.00010699,2]
[422472307,1778973032000,-4494.81890222,0.00010699,2]
[422472285,1778973032000,-2905.9379517,0.00010699,2]
[422472308,1778973032000,-4494.81890222,0.00010699,2]
[422472306,1778973032000,-4494.81890222,0.00010699,2]
[422472310,1778973032000,-4494.81890222,0.00010699,2]
[422472305,1778973032000,-4494.81890222,0.00010699,2]
[422472303,1778973032000,-4494.81890222,0.00010699,2]
[422472301,1778973032000,-450.0,0.00010699,2]
[422472302,1778973032000,-4494.81890222,0.00010699,2]
[422472299,1778973032000,-500.77055595,0.00010699,2]
[422472304,1778973032000,-4494.81890222,0.00010699,2]
[422472347,1778973033000,-1284.18884217,0.000107,2]
[422472342,1778973033000,-194627.56184608,0.000107,2]
[422472344,1778973033000,-1254.41808677,0.000107,2]
[422472343,1778973033000,-337928.18316753,0.000107,2]
[422472345,1778973033000,-512.90085166,0.000107,2]
[422472346,1778973033000,-3459.21954555,0.000107,2]
[422472350,1778973033000,-719.52552339,0.000107,2]
[422472349,1778973033000,-2642.63241699,0.000107,2]
[422472348,1778973033000,-2434.79182097,0.000107,2]
[422472353,1778973033000,-1110.61079819,0.000107,2]
[422472354,1778973033000,-341.348914,0.000107,2]
[422472351,1778973033000,-620.42829203,0.000107,2]
[422472352,1778973033000,-1159.94357071,0.000107,2]
[422472388,1778973038000,-300.0,0.00014999,2]
[422472389,1778973038000,-2076.26775754,0.00015,2]
[422472387,1778973038000,-300.0,0.00014999,2]
[422472386,1778973038000,-300.0,0.00014999,2]
[422472391,1778973038000,-966186.17470419,0.00015,2]
[422472390,1778973038000,-8083.22155272,0.00015,2]
[422472393,1778973038000,-361.9449132,0.00015552,2]
[422472392,1778973038000,-500.0,0.00015357,2]
[422472396,1778973038000,-278.69,0.00016438,2]
[422472395,1778973038000,-809.34080542,0.0001611,15]
[422472394,1778973038000,-218.09,0.00016077,2]
[422472400,1778973038000,-151.0,0.00016899,2]
[422472398,1778973038000,-1190.91767515,0.00016728,2]
[422472399,1778973038000,-1258.56046455,0.00016846,2]
[422472402,1778973038000,-151.0,0.00016899,2]
[422472404,1778973038000,-151.0,0.00016899,2]
[422472405,1778973038000,-151.0,0.00016899,2]
[422472403,1778973038000,-151.0,0.00016899,2]
[422472407,1778973038000,-151.0,0.00016899,2]
[422472406,1778973038000,-151.0,0.00016899,2]
[422472409,1778973038000,-151.0,0.00016899,2]
[422472410,1778973038000,-151.0,0.00016899,2]
[422472408,1778973038000,-151.0,0.00016899,2]
[422472397,1778973038000,-5619.87972295,0.000165,2]
[422472385,1778973038000,-1190.91767515,0.00014685,2]
[422472382,1778973038000,-200.0,0.00013741,2]
[422472383,1778973038000,-250.0,0.00014,2]
[422472411,1778973038000,-151.0,0.00016899,2]
[422472359,1778973038000,-10137.6037,0.000107,2]
[422472361,1778973038000,-150.0,0.00010711,2]
[422472360,1778973038000,-3973947.74907855,0.000107,2]
[422472363,1778973038000,-1190.91767515,0.000109,2]
[422472362,1778973038000,-150.0,0.00010817,2]
[422472364,1778973038000,-150.67,0.00011062,2]
[422472368,1778973038000,-250.0,0.00011667,2]
[422472367,1778973038000,-238.35,0.00011235,2]
[422472365,1778973038000,-16785.60886764,0.00011099,2]
[422472366,1778973038000,-238.35,0.00011235,2]
[422472384,1778973038000,-218.09,0.00014615,2]
[422472369,1778973038000,-150.67,0.00011894,2]
[422472371,1778973038000,-1910.78,0.00012087,2]
[422472372,1778973038000,-150.99,0.00012087,2]
[422472374,1778973038000,-9999.99,0.00012087,2]
[422472373,1778973038000,-352.98,0.00012087,2]
[422472377,1778973038000,-15352.11,0.00013072,2]
[422472375,1778973038000,-516.42,0.00012427,2]
[422472378,1778973038000,-2501.971,0.00013072,2]
[422472376,1778973038000,-1190.91767515,0.00012642,2]
[422472379,1778973038000,-153.397,0.00013072,2]
[422472381,1778973038000,-229.46,0.000137,2]
[422472380,1778973038000,-1627.97,0.00013076,2]
[422472370,1778973038000,-9999.99,0.00012087,2]
[422472416,1778973038000,-151.0,0.00016899,2]
[422472419,1778973038000,-151.0,0.00016899,2]
[422472413,1778973038000,-151.0,0.00016899,2]
[422472444,1778973038000,-500.0,0.00017808,2]
[422472446,1778973038000,-500.0,0.00017808,2]
[422472445,1778973038000,-500.0,0.00017808,2]
[422472448,1778973038000,-500.0,0.00017808,2]
[422472447,1778973038000,-500.0,0.00017808,2]
[422472449,1778973038000,-500.0,0.00017808,2]
[422472450,1778973038000,-500.0,0.00017808,2]
[422472451,1778973038000,-300.0,0.00017999,2]
[422472453,1778973038000,-300.0,0.00017999,2]
[422472452,1778973038000,-300.0,0.00017999,2]
[422472455,1778973038000,-1800.32017362,0.000181,2]
[422472457,1778973038000,-4190.0,0.00019,2]
[422472456,1778973038000,-1190.91767515,0.00018771,2]
[422472460,1778973038000,-240.0,0.0002,2]
[422472461,1778973038000,-196.0,0.0002,2]
[422472462,1778973038000,-151.0,0.0002,2]
[422472459,1778973038000,-166.0,0.0002,2]
[422472458,1778973038000,-5231.1380299,0.00019,2]
[422472463,1778973038000,-2000.0,0.0002,2]
[422472465,1778973038000,-157.0,0.0002,2]
[422472464,1778973038000,-602.0,0.0002,2]
[422472466,1778973038000,-154.0,0.0002,2]
[422472414,1778973038000,-151.0,0.00016899,2]
[422472441,1778973038000,-500.0,0.00017808,2]
[422472442,1778973038000,-500.0,0.00017808,2]
[422472454,1778973038000,-110764.11664392,0.00018,2]
[422472440,1778973038000,-500.0,0.00017808,2]
[422472418,1778973038000,-151.0,0.00016899,2]
[422472443,1778973038000,-500.0,0.00017808,2]
[422472412,1778973038000,-151.0,0.00016899,2]
[422472417,1778973038000,-151.0,0.00016899,2]
[422472415,1778973038000,-151.0,0.00016899,2]
[422472420,1778973038000,-151.0,0.00016899,2]
[422472422,1778973038000,-500.0,0.00017808,2]
[422472424,1778973038000,-500.0,0.00017808,2]
[422472423,1778973038000,-500.0,0.00017808,2]
[422472425,1778973038000,-500.0,0.00017808,2]
[422472429,1778973038000,-500.0,0.00017808,2]
[422472426,1778973038000,-500.0,0.00017808,2]
[422472421,1778973038000,-792.32411823,0.000177,2]
[422472428,1778973038000,-500.0,0.00017808,2]
[422472439,1778973038000,-500.0,0.00017808,2]
[422472438,1778973038000,-500.0,0.00017808,2]
[422472437,1778973038000,-500.0,0.00017808,2]
[422472436,1778973038000,-500.0,0.00017808,2]
[422472432,1778973038000,-500.0,0.00017808,2]
[422472435,1778973038000,-500.0,0.00017808,2]
[422472430,1778973038000,-500.0,0.00017808,2]
[422472434,1778973038000,-500.0,0.00017808,2]
[422472431,1778973038000,-367.9166081,0.00017808,2]
[422472427,1778973038000,-500.0,0.00017808,2]
[422472433,1778973038000,-500.0,0.00017808,2]
[422472511,1778973039000,-1350.0,0.00022814,7]
[422472512,1778973039000,-1190.91767515,0.00022857,2]
[422472513,1778973039000,-240.0,0.00023,2]
[422472507,1778973039000,-500.0,0.00022472,2]
[422472506,1778973039000,-150.0,0.00022457,2]
[422472504,1778973039000,-153.10947252,0.00022167,17]
[422472501,1778973039000,-119876.40162128,0.00022,4]
[422472503,1778973039000,-243.63814301,0.0002211,2]
[422472502,1778973039000,-812.97513299,0.00022,7]
[422472500,1778973039000,-154.0,0.00022,2]
[422472499,1778973039000,-157.0,0.00022,2]
[422472505,1778973039000,-1788.03,0.00022213,2]
[422472510,1778973039000,-950.0,0.00022814,2]
[422472524,1778973039000,-602.0,0.00024,2]
[422472508,1778973039000,-594.31,0.00022509,2]
[422472515,1778973039000,-165.0,0.00023,2]
[422472516,1778973039000,-602.0,0.00023,2]
[422472514,1778973039000,-196.0,0.00023,2]
[422472518,1778973039000,-154.0,0.00023,2]
[422472517,1778973039000,-157.0,0.00023,2]
[422472520,1778973039000,-2000.0,0.00023227,2]
[422472519,1778973039000,-648.42075488,0.00023,7]
[422472522,1778973039000,-240.0,0.00024,2]
[422472525,1778973039000,-173.39833639,0.00024,2]
[422472521,1778973039000,-189.56,0.00023421,2]
[422472497,1778973039000,-151.0,0.00022,2]
[422472509,1778973039000,-2500.0,0.00022814,2]
[422472498,1778973039000,-602.0,0.00022,2]
[422472469,1778973039000,-361.9449132,0.00020498,2]
[422472495,1778973039000,-240.0,0.00022,2]
[422472467,1778973039000,-2000.0,0.0002001,2]
[422472468,1778973039000,-3431.208592,0.0002002,2]
[422472470,1778973039000,-150.95346003,0.000205,13]
[422472473,1778973039000,-229.46,0.000209,2]
[422472474,1778973039000,-240.0,0.00021,2]
[422472471,1778973039000,-152.52254784,0.000205,13]
[422472475,1778973039000,-196.0,0.00021,2]
[422472472,1778973039000,-1190.91767515,0.00020814,2]
[422472477,1778973039000,-602.0,0.00021,2]
[422472476,1778973039000,-151.0,0.00021,2]
[422472479,1778973039000,-154.0,0.00021,2]
[422472480,1778973039000,-10000.0,0.00021,2]
[422472478,1778973039000,-157.0,0.00021,2]
[422472482,1778973039000,-313.0,0.00021,2]
[422472484,1778973039000,-1005.11,0.00021273,2]
[422472481,1778973039000,-160.0,0.00021,7]
[422472486,1778973039000,-1000.0,0.00021275,2]
[422472485,1778973039000,-2038.34,0.00021273,2]
[422472483,1778973039000,-1747.26,0.00021273,2]
[422472487,1778973039000,-200.0,0.00021415,2]
[422472523,1778973039000,-196.0,0.00024,2]
[422472490,1778973039000,-150.0,0.00021681,2]
[422472489,1778973039000,-225.14220559,0.000215,2]
[422472491,1778973039000,-5000.0,0.00021918,2]
[422472492,1778973039000,-3074.97,0.00021918,2]
[422472494,1778973039000,-300.0,0.00021999,2]
[422472493,1778973039000,-300.0,0.00021999,2]
[422472496,1778973039000,-196.0,0.00022,2]
[422472526,1778973039000,-154.0,0.00024,2]
[422472488,1778973039000,-48419.66894767,0.000215,2]
[422472528,1778973039000,-10000.0,0.00024224,2]
[422472563,1778973039000,-259.811057,0.00025,2]
[422472568,1778973039000,-500.0,0.00025,2]
[422472565,1778973039000,-259.811057,0.00025,2]
[422472566,1778973039000,-500.0,0.00025,2]
[422472567,1778973039000,-500.0,0.00025,2]
[422472564,1778973039000,-151.0,0.00025,2]
[422472569,1778973039000,-500.0,0.00025,2]
[422472571,1778973039000,-500.0,0.00025,2]
[422472572,1778973039000,-500.0,0.00025,2]
[422472575,1778973039000,-500.0,0.00025,2]
[422472576,1778973039000,-500.0,0.00025,2]
[422472573,1778973039000,-500.0,0.00025,2]
[422472574,1778973039000,-500.0,0.00025,2]
[422472579,1778973039000,-500.0,0.00025,2]
[422472580,1778973039000,-500.0,0.00025,2]
[422472577,1778973039000,-500.0,0.00025,2]
[422472578,1778973039000,-500.0,0.00025,2]
[422472582,1778973039000,-500.0,0.00025,2]
[422472581,1778973039000,-500.0,0.00025,2]
[422472584,1778973039000,-500.0,0.00025,2]
[422472583,1778973039000,-500.0,0.00025,2]
[422472586,1778973039000,-500.0,0.00025,2]
[422472585,1778973039000,-500.0,0.00025,2]
[422472587,1778973039000,-500.0,0.00025,2]
[422472588,1778973039000,-500.0,0.00025,2]
[422472589,1778973039000,-500.0,0.00025,2]
[422472527,1778973039000,-3753.39752942,0.0002421,2]
[422472562,1778973039000,-259.811057,0.00025,2]
[422472561,1778973039000,-259.811057,0.00025,2]
[422472570,1778973039000,-500.0,0.00025,2]
[422472557,1778973039000,-1121.974016,0.00025,2]
[422472560,1778973039000,-151.0,0.00025,2]
[422472529,1778973039000,-1000.0,0.00024658,2]
[422472531,1778973039000,-165.19732034,0.000249,2]
[422472530,1778973039000,-208.67333663,0.000249,2]
[422472532,1778973039000,-1190.91767515,0.000249,2]
[422472533,1778973039000,-215.03962261,0.00024904,2]
[422472535,1778973039000,-160.0,0.00024904,2]
[422472534,1778973039000,-208.44072055,0.00024904,2]
[422472536,1778973039000,-300.0,0.00024999,10]
[422472538,1778973039000,-250.0,0.00025,2]
[422472540,1778973039000,-229.46,0.00025,7]
[422472550,1778973039000,-215.03962261,0.00025,7]
[422472539,1778973039000,-215.90251706,0.00025,2]
[422472542,1778973039000,-458.15589909,0.00025,2]
[422472537,1778973039000,-300.0,0.00024999,10]
[422472556,1778973039000,-151.0,0.00025,2]
[422472541,1778973039000,-603.24247352,0.00025,2]
[422472559,1778973039000,-1121.974016,0.00025,2]
[422472558,1778973039000,-1121.974016,0.00025,2]
[422472552,1778973039000,-151.0,0.00025,2]
[422472555,1778973039000,-1121.974016,0.00025,2]
[422472553,1778973039000,-151.0,0.00025,2]
[422472554,1778973039000,-151.0,0.00025,2]
[422472549,1778973039000,-1585248.97044921,0.00025,2]
[422472548,1778973039000,-2279.43219507,0.00025,2]
[422472546,1778973039000,-541.87120042,0.00025,5]
[422472544,1778973039000,-56617.88213438,0.00025,7]
[422472551,1778973039000,-151.0,0.00025,2]
[422472631,1778973040000,-240.725161,0.00025,2]
[422472630,1778973040000,-240.725161,0.00025,2]
[422472635,1778973040000,-240.725161,0.00025,2]
[422472633,1778973040000,-151.0,0.00025,2]
[422472632,1778973040000,-157.143938,0.00025,2]
[422472629,1778973040000,-157.143938,0.00025,2]
[422472621,1778973040000,-223.445752,0.00025,2]
[422472627,1778973040000,-157.143938,0.00025,2]
[422472626,1778973040000,-2253.194383,0.00025,2]
[422472625,1778973040000,-2253.194383,0.00025,2]
[422472623,1778973040000,-2253.194383,0.00025,2]
[422472636,1778973040000,-151.0,0.00025,2]
[422472628,1778973040000,-157.143938,0.00025,2]
[422472634,1778973040000,-151.0,0.00025,2]
[422472652,1778973040000,-2038.34,0.00025786,2]
[422472637,1778973040000,-240.725161,0.00025,2]
[422472640,1778973040000,-165.19732034,0.000252,2]
[422472639,1778973040000,-208.67333663,0.000252,2]
[422472641,1778973040000,-208.67333663,0.000254,2]
[422472642,1778973040000,-165.19732034,0.000254,2]
[422472646,1778973040000,-193.95096606,0.00025494,2]
[422472644,1778973040000,-5136.1094857,0.00025445,2]
[422472645,1778973040000,-164.89,0.00025486,2]
[422472643,1778973040000,-361.9449132,0.00025444,2]
[422472648,1778973040000,-216.0,0.00025695,2]
[422472647,1778973040000,-158.87,0.00025565,2]
[422472649,1778973040000,-208.67333663,0.000257,2]
[422472622,1778973040000,-223.445752,0.00025,2]
[422472638,1778973040000,-151.0,0.00025,2]
[422472624,1778973040000,-2253.194383,0.00025,2]
[422472590,1778973040000,-500.0,0.00025,2]
[422472618,1778973040000,-184.204153,0.00025,2]
[422472651,1778973040000,-1005.11,0.00025786,2]
[422472592,1778973040000,-500.0,0.00025,2]
[422472591,1778973040000,-500.0,0.00025,2]
[422472593,1778973040000,-500.0,0.00025,2]
[422472594,1778973040000,-500.0,0.00025,2]
[422472600,1778973040000,-500.0,0.00025,2]